[Event "Czech Youth U10 Boys 2024"]
[Site "Kouty nad Desnou"]
[Date "2024.03.14"]
[Round "7.4"]
[White "Strihavka, Petr"]
[Black "Skoloud, Josef"]
[Result "1/2-1/2"]
[ECO "C48"]
[WhiteElo "1447"]
[BlackElo "1564"]
[Annotator "NA RC"]
[PlyCount "108"]
[EventDate "2024.03.10"]
[EventType "swiss"]
[EventCountry "CZE"]
[SourceTitle "playchess.com"]
[Source "ChessBase"]
[SourceQuality "1"]
[TimeControl "40/5400+30:1800+30"]

1. e4 {[%emt 0:00:03]} e5 {[%emt 0:00:04]} 2. Nf3 {[%emt 0:00:24]} Nc6 {[%emt 0:00:28]} 3. Nc3 {[%emt 0:00:10]} Nf6 {[%emt 0:00:09]} 4. Bb5 {[%emt 0:00:14]} d6 {[%emt 0:00:24]} 5. d4 {[%emt 0:00:53]} exd4 {[%emt 0:00:24]} 6. Nxd4 {[%emt 0:00:28]} Bd7 {[%emt 0:00:40]} 7. Nxc6 {[%emt 0:01:15]} Bxc6 {[%emt 0:00:53]} 8. Bxc6+ {[%emt 0:00:09]} bxc6 {[%emt 0:00:06]} 9. O-O {[%emt 0:00:26]} Be7 {[%emt 0:01:24]} 10. Qf3 {[%emt 0:02:10]} O-O {[%emt 0:01:37]} 11. Rd1 {[%emt 0:01:47]} Qc8 {[%emt 0:03:06]} 12. Bg5 {[%emt 0:04:21]} Rb8 {[%emt 0:02:46]} 13. Rab1 {[%emt 0:01:47]} Re8 {[%emt 0:04:13]} 14. h3 {[%emt 0:15:13]} Nd7 {[%emt 0:07:32]} 15. Bxe7 {[%emt 0:00:28]} Rxe7 {[%emt 0:00:12]} 16. Rd4 {[%emt 0:05:35]} Qe8 {[%emt 0:04:29]} 17. Ra4 {[%emt 0:06:12]} Rb7 {[%emt 0:00:43]} 18. b3 {[%emt 0:06:06]} Nc5 {[%emt 0:02:12]} 19. Rc4 {[%emt 0:00:53]} Nd7 {[%emt 0:00:16]} 20. Qf4 {[%emt 0:01:25]} Nf6 {[%emt 0:04:42]} 21. f3 {[%emt 0:03:22]} d5 {[%emt 0:01:58]} 22. Ra4 {[%emt 0:03:23]} dxe4 {[%emt 0:01:38]} 23. Nxe4 {[%emt 0:01:37]} Nxe4 {[%emt 0:00:27]} 24. Rxe4 {[%emt 0:00:18]} Rxe4 {[%emt 0:00:09]} 25. Qxe4 {[%emt 0:00:18]} Qxe4 {[%emt 0:00:10]} 26. fxe4 {[%emt 0:00:11]} Rb4 {[%emt 0:01:16]} 27. Re1 {[%emt 0:00:31]} Rd4 {[%emt 0:00:20]} 28. Kf2 {[%emt 0:00:46]} Kf8 {[%emt 0:01:55]} 29. Ke3 {[%emt 0:00:41]} Rd6 {[%emt 0:00:23]} 30. Re2 {[%emt 0:00:41]} Ke7 {[%emt 0:01:59]} 31. Rd2 {[%emt 0:00:57]} Ke6 {[%emt 0:01:29]} 32. Rxd6+ {[%emt 0:00:52]} cxd6 {[%emt 0:00:10]} 33. c4 {[%emt 0:00:41]} Ke5 {[%emt 0:05:02]} 34. g4 {[%emt 0:01:32]} d5 {[%emt 0:04:07]} 35. exd5 {[%emt 0:00:18]} cxd5 {[%emt 0:00:08]} 36. c5 {[%emt 0:00:23]} d4+ {[%emt 0:00:13]} 37. Kd3 {[%emt 0:00:19]} Kd5 {[%emt 0:00:17]} 38. b4 {[%emt 0:00:10]} a6 {[%emt 0:00:49]} 39. a4 {[%emt 0:01:42]} f6 {[%emt 0:01:59]} 40. c6 {[%emt 0:01:32]} Kxc6 {[%emt 0:00:13]} 41. Kxd4 {[%emt 0:30:22]} g6 {[%emt 0:31:39]} 42. Ke4 {[%emt 0:07:47]} Kd6 {[%emt 0:02:29]} 43. Kf4 {[%emt 0:01:01]} Kd5 {[%emt 0:01:25]} 44. b5 {[%emt 0:03:36]} axb5 {[%emt 0:00:19]} 45. axb5 {[%emt 0:00:09]} Kc5 {[%emt 0:00:14]} 46. Ke4 {[%emt 0:00:32]} Kxb5 {[%emt 0:00:11]} 47. Kd5 {[%emt 0:00:13]} f5 {[%emt 0:00:26]} 48. Ke5 {[%emt 0:00:53]} Kc5 {[%emt 0:00:29]} 49. gxf5 {[%emt 0:00:17]} gxf5 {[%emt 0:00:09]} 50. Kxf5 {[%emt 0:00:12]} Kd5 {[%emt 0:00:05]} 51. Kf6 {[%emt 0:00:52]} Kd6 {[%emt 0:00:16]} 52. h4 {[%emt 0:01:32]} h5 {[%emt 0:00:24]} 53. Kg7 {[%emt 0:00:38]} Ke6 {[%emt 0:00:37]} 54. Kg6 {[%emt 0:00:19]} Ke7 {[%emt 0:00:13]} 1/2-1/2

[Event "Czech Youth U10 Boys 2024"]
[Site "Kouty nad Desnou"]
[Date "2024.03.14"]
[Round "7.5"]
[White "Vratny, Vojtech"]
[Black "Bukovskij, Dmitri"]
[Result "0-1"]
[ECO "E06"]
[WhiteElo "1566"]
[BlackElo "1665"]
[Annotator "NA RC"]
[PlyCount "58"]
[EventDate "2024.03.10"]
[EventType "swiss"]
[EventCountry "CZE"]
[SourceTitle "playchess.com"]
[Source "ChessBase"]
[SourceQuality "1"]
[TimeControl "40/5400+30:1800+30"]

1. d4 {[%emt 0:00:09]} d5 {[%emt 0:00:14]} 2. c4 {[%emt 0:00:24]} e6 {[%emt 0:00:21]} 3. Nf3 {[%emt 0:00:17]} Nf6 {[%emt 0:00:30]} 4. g3 {[%emt 0:00:26]} Be7 {[%emt 0:00:26]} 5. Bg2 {[%emt 0:00:32]} O-O {[%emt 0:00:11]} 6. O-O {[%emt 0:00:52]} dxc4 {[%emt 0:00:25]} 7. Ne5 {[%emt 0:00:40]} Nd5 {[%emt 0:01:35]} 8. Nxc4 {[%emt 0:00:47]} b5 {[%emt 0:00:21]} 9. Ne3 {[%emt 0:00:41]} Bb7 {[%emt 0:00:45]} 10. Nxd5 {[%emt 0:00:52]} Bxd5 {[%emt 0:00:29]} 11. e4 {[%emt 0:00:56]} Bb7 {[%emt 0:00:46]} 12. Be3 {[%emt 0:01:15]} Nd7 {[%emt 0:04:02]} 13. Nd2 {[%emt 0:02:27]} c5 {[%emt 0:00:56]} 14. Nb3 {[%emt 0:02:26]} c4 {[%emt 0:02:41]} 15. Nd2 {[%emt 0:02:16]} e5 {[%emt 0:01:41]} 16. d5 {[%emt 0:00:50]} Bc5 {[%emt 0:00:53]} 17. Bxc5 {[%emt 0:01:06]} Nxc5 {[%emt 0:00:11]} 18. Qc2 {[%emt 0:03:24]} Nd3 {[%emt 0:01:43]} 19. b3 {[%emt 0:04:58]} Rc8 {[%emt 0:01:51]} 20. bxc4 {[%emt 0:00:52]} bxc4 {[%emt 0:00:20]} 21. Rfb1 {[%emt 0:03:50]} Ba6 {[%emt 0:00:55]} 22. Bf1 {[%emt 0:03:13]} Qd6 {[%emt 0:05:07]} 23. Nf3 {[%emt 0:01:44]} Rb8 {[%emt 0:02:02]} 24. Ne1 {[%emt 0:02:05]} Qa3 {[%emt 0:07:15]} 25. Qe2 {[%emt 0:09:31]} Rxb1 {[%emt 0:12:04]} 26. Rxb1 {[%emt 0:00:19]} f5 {[%emt 0:09:01]} 27. f3 {[%emt 0:04:01]} fxe4 {[%emt 0:00:34]} 28. Qxe4 {[%emt 0:00:41]} Qc5+ {[%emt 0:00:11]} 29. Kg2 {[%emt 0:00:35]} Qf2+ {[%emt 0:00:10]} 0-1

[Event "Czech Youth U10 Boys 2024"]
[Site "Kouty nad Desnou"]
[Date "2024.03.14"]
[Round "7.6"]
[White "Zelenka, Tomas"]
[Black "Hlavacek, Pavel"]
[Result "1-0"]
[ECO "B13"]
[WhiteElo "1566"]
[BlackElo "1945"]
[Annotator "RC"]
[PlyCount "61"]
[EventDate "2024.03.10"]
[EventType "swiss"]
[EventCountry "CZE"]
[SourceTitle "playchess.com"]
[Source "ChessBase"]
[SourceQuality "1"]
[TimeControl "40/5400+30:1800+30"]

1. e4 {[%emt 0:00:05]} c6 {[%emt 0:00:15]} 2. d4 {[%emt 0:00:20]} d5 {[%emt 0:00:13]} 3. exd5 {[%emt 0:00:17]} cxd5 {[%emt 0:00:21]} 4. c3 {[%emt 0:00:32]} Qc7 {[%emt 0:03:30]} 5. Bd3 {[%emt 0:00:56]} Nc6 {[%emt 0:00:29]} 6. h3 {[%emt 0:01:44]} Nf6 {[%emt 0:00:56]} 7. Nf3 {[%emt 0:01:26]} g6 {[%emt 0:00:51]} 8. O-O {[%emt 0:00:51]} Bf5 {[%emt 0:01:16]} 9. Bxf5 {[%emt 0:01:57]} gxf5 {[%emt 0:00:14]} 10. Re1 {[%emt 0:00:47]} O-O-O {[%emt 0:00:37]} 11. Nbd2 {[%emt 0:11:51]} e6 {[%emt 0:01:54]} 12. Nf1 {[%emt 0:06:26]} Bd6 {[%emt 0:02:21]} 13. Bg5 {[%emt 0:02:57]} Be7 {[%emt 0:01:52]} 14. Ne5 {[%emt 0:04:25]} Rhg8 {[%emt 0:09:48]} 15. Bf4 {[%emt 0:01:42]} Bd6 {[%emt 0:02:44]} 16. Rc1 {[%emt 0:13:33]} Rdf8 {[%emt 0:06:36]} 17. c4 {[%emt 0:02:55]} Nd7 {[%emt 0:06:33]} 18. Bh6 {[%emt 0:06:11]} Re8 {[%emt 0:09:04]} 19. Nxf7 {[%emt 0:05:12]} Nf6 {[%emt 0:02:30]} 20. Ne5 {[%emt 0:05:18]} Bxe5 {[%emt 0:04:39]} 21. dxe5 {[%emt 0:01:20]} Rg6 {[%emt 0:01:26]} 22. exf6 {[%emt 0:01:13]} Reg8 {[%emt 0:00:35]} 23. Ne3 {[%emt 0:02:50]} d4 {[%emt 0:00:45]} 24. Bg7 {[%emt 0:01:58]} dxe3 {[%emt 0:01:46]} 25. Rxe3 {[%emt 0:00:37]} f4 {[%emt 0:02:32]} 26. Rxe6 {[%emt 0:01:39]} Nd8 {[%emt 0:14:55]} 27. Re7 {[%emt 0:03:18]} Qc6 {[%emt 0:00:24]} 28. Qd5 {[%emt 0:00:41]} Qxd5 {[%emt 0:01:48]} 29. cxd5+ {[%emt 0:00:14]} Kb8 {[%emt 0:00:06]} 30. Rec7 {[%emt 0:01:56]} b6 {[%emt 0:00:34]} 31. b4 1-0

[Event "Czech Youth U10 Boys 2024"]
[Site "Kouty nad Desnou"]
[Date "2024.03.14"]
[Round "7.8"]
[White "Cerny, Ren"]
[Black "Fadrny, Jonas"]
[Result "1-0"]
[ECO "C01"]
[WhiteElo "1623"]
[BlackElo "1600"]
[Annotator "NA RC"]
[PlyCount "51"]
[EventDate "2024.03.10"]
[EventType "swiss"]
[EventCountry "CZE"]
[SourceTitle "playchess.com"]
[Source "ChessBase"]
[SourceQuality "1"]
[TimeControl "40/5400+30:1800+30"]

1. e4 {[%emt 0:00:08]} e6 {[%emt 0:00:10]} 2. d4 {[%emt 0:00:11]} d5 {[%emt 0:00:09]} 3. exd5 {[%emt 0:00:22]} exd5 {[%emt 0:00:14]} 4. Bd3 {[%emt 0:00:44]} Bd6 {[%emt 0:00:18]} 5. Nf3 {[%emt 0:01:05]} Nc6 {[%emt 0:00:16]} 6. O-O {[%emt 0:00:29]} Nge7 {[%emt 0:04:56]} 7. h3 {[%emt 0:04:17]} Be6 {[%emt 0:10:56]} 8. Re1 {[%emt 0:05:06]} Qd7 {[%emt 0:02:33]} 9. Be3 {[%emt 0:04:13]} O-O-O {[%emt 0:02:13]} 10. c3 {[%emt 0:03:43]} Rdg8 {[%emt 0:11:04]} 11. Nbd2 {[%emt 0:03:55]} f5 {[%emt 0:05:16]} 12. Ng5 {[%emt 0:07:21]} Nd8 {[%emt 0:11:06]} 13. Nxe6 {[%emt 0:03:09]} Nxe6 {[%emt 0:02:21]} 14. Nf3 {[%emt 0:02:07]} f4 {[%emt 0:02:49]} 15. Bd2 {[%emt 0:01:39]} g5 {[%emt 0:00:54]} 16. Ne5 {[%emt 0:02:01]} Bxe5 {[%emt 0:01:47]} 17. Rxe5 {[%emt 0:02:23]} Nc6 {[%emt 0:02:13]} 18. Re1 {[%emt 0:01:06]} h6 {[%emt 0:03:13]} 19. Bf5 {[%emt 0:09:44]} Ncd8 {[%emt 0:04:04]} 20. Re5 {[%emt 0:03:29]} Kb8 {[%emt 0:04:10]} 21. Qb3 {[%emt 0:04:18]} c6 {[%emt 0:01:39]} 22. Rae1 {[%emt 0:02:14]} Re8 {[%emt 0:01:04]} 23. Qb4 {[%emt 0:07:28]} Qe7 {[%emt 0:06:55]} 24. Qxe7 {[%emt 0:01:01]} Rxe7 {[%emt 0:00:20]} 25. Bxe6 {[%emt 0:00:27]} Nxe6 {[%emt 0:02:07]} 26. Rxe6 {[%emt 0:00:20]} 1-0

[Event "Czech Youth U10 Boys 2024"]
[Site "Kouty nad Desnou"]
[Date "2024.03.14"]
[Round "7.9"]
[White "Krivka, Lukas"]
[Black "Hroch, Pavel"]
[Result "1-0"]
[ECO "D10"]
[WhiteElo "1567"]
[BlackElo "1495"]
[Annotator "NA RC"]
[PlyCount "45"]
[EventDate "2024.03.10"]
[EventType "swiss"]
[EventCountry "CZE"]
[SourceTitle "playchess.com"]
[Source "ChessBase"]
[SourceQuality "1"]
[TimeControl "40/5400+30:1800+30"]

1. d4 {[%emt 0:00:29]} d5 {[%emt 0:00:08]} 2. Nf3 {[%emt 0:00:24]} Nf6 {[%emt 0:00:14]} 3. c4 {[%emt 0:01:09]} c6 {[%emt 0:00:19]} 4. cxd5 {[%emt 0:03:28]} cxd5 {[%emt 0:00:20]} 5. Nc3 {[%emt 0:04:44]} Bf5 {[%emt 0:00:43]} 6. Bf4 {[%emt 0:08:59]} Qd7 {[%emt 0:01:25]} 7. Ne5 {[%emt 0:05:25]} Qd8 {[%emt 0:02:16]} 8. e3 {[%emt 0:02:40]} a6 {[%emt 0:00:08]} 9. Bd3 {[%emt 0:05:03]} Bxd3 {[%emt 0:01:49]} 10. Nxd3 {[%emt 0:03:24]} e6 {[%emt 0:00:13]} 11. O-O {[%emt 0:00:26]} Bd6 {[%emt 0:00:10]} 12. Bxd6 {[%emt 0:00:30]} Qxd6 {[%emt 0:00:09]} 13. h3 {[%emt 0:10:29]} O-O {[%emt 0:00:19]} 14. Re1 {[%emt 0:06:41]} Nbd7 {[%emt 0:00:09]} 15. Rb1 {[%emt 0:02:00]} Rfe8 {[%emt 0:01:12]} 16. b4 {[%emt 0:19:35]} Rac8 {[%emt 0:01:17]} 17. Nc5 {[%emt 0:00:55]} Nxc5 {[%emt 0:00:32]} 18. bxc5 {[%emt 0:00:05]} Qc7 {[%emt 0:00:17]} 19. Qb3 {[%emt 0:02:03]} e5 {[%emt 0:03:40]} 20. Nxd5 {[%emt 0:03:26]} Nxd5 {[%emt 0:00:28]} 21. Qxd5 {[%emt 0:00:28]} exd4 {[%emt 0:00:18]} 22. Rxb7 {[%emt 0:00:45]} Red8 {[%emt 0:01:23]} 23. Rxc7 {[%emt 0:00:25]} 1-0

[Event "Czech Youth U10 Boys 2024"]
[Site "Kouty nad Desnou"]
[Date "2024.03.14"]
[Round "7.10"]
[White "Rybar, Vojta"]
[Black "Dlouhy, Martin"]
[Result "0-1"]
[ECO "B45"]
[WhiteElo "1435"]
[BlackElo "1965"]
[Annotator "RC"]
[PlyCount "76"]
[EventDate "2024.03.10"]
[EventType "swiss"]
[EventCountry "CZE"]
[SourceTitle "playchess.com"]
[Source "ChessBase"]
[SourceQuality "1"]
[TimeControl "40/5400+30:1800+30"]

1. e4 {[%emt 0:00:03]} c5 {[%emt 0:00:06]} 2. Nc3 {[%emt 0:00:12]} e6 {[%emt 0:00:11]} 3. Nf3 {[%emt 0:00:12]} Nc6 {[%emt 0:00:07]} 4. d4 {[%emt 0:00:32]} cxd4 {[%emt 0:00:18]} 5. Nxd4 {[%emt 0:00:09]} Be7 {[%emt 0:01:07]} 6. Be3 {[%emt 0:00:30]} Nf6 {[%emt 0:02:06]} 7. Bc4 {[%emt 0:01:04]} a6 {[%emt 0:00:26]} 8. a3 {[%emt 0:11:52]} b5 {[%emt 0:02:05]} 9. Ba2 {[%emt 0:03:13]} Bb7 {[%emt 0:03:01]} 10. O-O {[%emt 0:10:34]} O-O {[%emt 0:01:05]} 11. f4 {[%emt 0:02:01]} Bc5 {[%emt 0:02:57]} 12. Kh1 {[%emt 0:02:19]} Nxd4 {[%emt 0:01:38]} 13. Bxd4 {[%emt 0:00:47]} d6 {[%emt 0:04:41]} 14. e5 {[%emt 0:04:29]} Bxd4 {[%emt 0:02:07]} 15. Qxd4 {[%emt 0:00:11]} dxe5 {[%emt 0:00:37]} 16. Qxe5 {[%emt 0:01:08]} Qd2 {[%emt 0:01:01]} 17. Qe2 {[%emt 0:00:42]} Qxe2 {[%emt 0:03:26]} 18. Nxe2 {[%emt 0:00:21]} Rfd8 {[%emt 0:00:27]} 19. Rad1 {[%emt 0:01:00]} g6 {[%emt 0:01:22]} 20. Rd4 {[%emt 0:04:02]} Nd5 {[%emt 0:01:03]} 21. Rfd1 {[%emt 0:01:16]} Rd7 {[%emt 0:03:25]} 22. Bxd5 {[%emt 0:00:35]} Rxd5 {[%emt 0:01:02]} 23. Nc3 {[%emt 0:00:16]} Rxd4 {[%emt 0:00:23]} 24. Rxd4 {[%emt 0:00:07]} Rc8 {[%emt 0:02:46]} 25. Rd7 {[%emt 0:00:49]} Bd5 {[%emt 0:02:12]} 26. Nxd5 {[%emt 0:00:41]} exd5 {[%emt 0:00:07]} 27. c3 {[%emt 0:00:24]} Re8 {[%emt 0:00:41]} 28. h3 {[%emt 0:00:30]} Re2 {[%emt 0:00:23]} 29. Rxd5 {[%emt 0:00:28]} Rxb2 {[%emt 0:00:06]} 30. Rd6 {[%emt 0:00:36]} a5 {[%emt 0:00:29]} 31. Ra6 {[%emt 0:00:37]} a4 {[%emt 0:00:04]} 32. Rb6 {[%emt 0:00:26]} Rb3 {[%emt 0:00:07]} 33. Kh2 {[%emt 0:00:13]} Kg7 {[%emt 0:00:14]} 34. g4 {[%emt 0:00:07]} Rxc3 {[%emt 0:00:14]} 35. Rxb5 {[%emt 0:00:06]} Rxa3 {[%emt 0:00:09]} 36. Rb2 {[%emt 0:00:15]} Rb3 {[%emt 0:01:05]} 37. Ra2 {[%emt 0:00:28]} a3 {[%emt 0:00:06]} 38. Kg1 {[%emt 0:00:27]} Rb1+ {[%emt 0:00:04]} 0-1

[Event "Czech Youth U10 Boys 2024"]
[Site "Kouty nad Desnou"]
[Date "2024.03.16"]
[Round "9.1"]
[White "Bukovskij, Dmitri"]
[Black "Bucek, Vit"]
[Result "0-1"]
[ECO "D35"]
[WhiteElo "1665"]
[BlackElo "1603"]
[Annotator "NA RC"]
[PlyCount "72"]
[EventDate "2024.03.10"]
[EventType "swiss"]
[EventCountry "CZE"]
[SourceTitle "playchess.com"]
[Source "ChessBase"]
[SourceQuality "1"]
[TimeControl "40/5400+30:1800+30"]

1. d4 {[%emt 0:00:03]} Nf6 {[%emt 0:00:05]} 2. c4 {[%emt 0:00:30]} e6 {[%emt 0:00:07]} 3. Nc3 {[%emt 0:00:18]} d5 {[%emt 0:00:07]} 4. cxd5 {[%emt 0:00:17]} exd5 {[%emt 0:00:08]} 5. Bg5 {[%emt 0:00:40]} c6 {[%emt 0:00:18]} 6. e3 {[%emt 0:00:25]} Bd6 {[%emt 0:00:48]} 7. Bd3 {[%emt 0:00:45]} O-O {[%emt 0:00:10]} 8. Qc2 {[%emt 0:00:27]} h6 {[%emt 0:00:26]} 9. Bh4 {[%emt 0:00:38]} Re8 {[%emt 0:00:11]} 10. Nf3 {[%emt 0:01:17]} Be6 {[%emt 0:00:16]} 11. O-O {[%emt 0:00:57]} Nbd7 {[%emt 0:00:26]} 12. Rab1 {[%emt 0:00:25]} a5 {[%emt 0:00:50]} 13. a3 {[%emt 0:01:13]} Qb8 {[%emt 0:00:12]} 14. Bg3 {[%emt 0:01:08]} Bxg3 {[%emt 0:01:06]} 15. hxg3 {[%emt 0:00:17]} b5 {[%emt 0:01:23]} 16. b4 {[%emt 0:01:18]} axb4 {[%emt 0:00:11]} 17. axb4 {[%emt 0:00:47]} Nb6 {[%emt 0:00:52]} 18. Ne5 {[%emt 0:01:09]} Qd6 {[%emt 0:00:52]} 19. Rfc1 {[%emt 0:12:08]} Nc4 20. Bxc4 {[%emt 0:03:32]} dxc4 {[%emt 0:02:15]} 21. Qb2 {[%emt 0:03:05]} Nd5 {[%emt 0:03:04]} 22. Ne4 {[%emt 0:02:50]} Qc7 {[%emt 0:06:06]} 23. Ra1 {[%emt 0:05:37]} f6 {[%emt 0:06:56]} 24. Nf3 {[%emt 0:01:04]} Qe7 {[%emt 0:01:09]} 25. Rxa8 {[%emt 0:01:06]} Rxa8 {[%emt 0:00:15]} 26. Nc5 {[%emt 0:00:12]} c3 {[%emt 0:03:46]} 27. Qb3 {[%emt 0:01:47]} Bf7 {[%emt 0:04:40]} 28. e4 {[%emt 0:00:40]} Nf4 {[%emt 0:04:09]} 29. Qc2 {[%emt 0:01:45]} Ra2 {[%emt 0:00:29]} 30. gxf4 {[%emt 0:01:35]} Rxc2 {[%emt 0:00:50]} 31. Rxc2 {[%emt 0:00:04]} Qa7 {[%emt 0:00:20]} 32. Kh2 {[%emt 0:03:58]} Qa3 {[%emt 0:00:49]} 33. Nd3 {[%emt 0:03:01]} Bc4 {[%emt 0:00:43]} 34. Nfe1 {[%emt 0:01:29]} Bxd3 {[%emt 0:00:36]} 35. Nxd3 {[%emt 0:00:08]} Qb3 {[%emt 0:00:25]} 36. Re2 {[%emt 0:11:56]} Qd1 {[%emt 0:02:09]} 0-1

[Event "Czech Youth U10 Boys 2024"]
[Site "Kouty nad Desnou"]
[Date "2024.03.16"]
[Round "9.2"]
[White "Zelenka, Tomas"]
[Black "Trejbal, Jindrich"]
[Result "1-0"]
[ECO "A40"]
[WhiteElo "1566"]
[BlackElo "1947"]
[Annotator "NA RC"]
[PlyCount "103"]
[EventDate "2024.03.10"]
[EventType "swiss"]
[EventCountry "CZE"]
[SourceTitle "playchess.com"]
[Source "ChessBase"]
[SourceQuality "1"]
[TimeControl "40/5400+30:1800+30"]

1. d4 {[%emt 0:00:07]} e6 {[%emt 0:00:13]} 2. c4 {[%emt 0:00:17]} b6 {[%emt 0:00:33]} 3. Nc3 {[%emt 0:00:53]} Bb7 {[%emt 0:00:29]} 4. Nf3 {[%emt 0:00:53]} Nf6 {[%emt 0:01:23]} 5. Bg5 {[%emt 0:00:51]} Be7 {[%emt 0:03:17]} 6. e3 {[%emt 0:02:46]} d5 {[%emt 0:09:13]} 7. Bd3 {[%emt 0:00:15]} h6 {[%emt 0:03:25] E12: Queen's Indian: Unusual White 4th moves, 4 a3, 4 Nc3 Bb7 5 a3 and 4 Nc3 Bb7 .} 8. Bf4 {[%emt 0:03:48]} Bd6 {[%emt 0:06:14]} 9. Bxd6 {[%emt 0:02:45]} Qxd6 {[%emt 0:02:40]} 10. Qc2 {[%emt 0:01:56]} Nc6 {[%emt 0:03:46]} 11. a3 {[%emt 0:02:28]} a6 {[%emt 0:05:24]} 12. O-O {[%emt 0:04:07]} O-O {[%emt 0:04:21]} 13. b4 {[%emt 0:03:08]} Rfe8 {[%emt 0:04:45]} 14. c5 {[%emt 0:02:15]} Qe7 {[%emt 0:04:42]} 15. cxb6 {[%emt 0:06:36]} cxb6 {[%emt 0:01:27]} 16. b5 {[%emt 0:05:25]} axb5 {[%emt 0:01:53]} 17. Bxb5 {[%emt 0:00:38]} Rec8 {[%emt 0:01:50]} 18. Qb2 {[%emt 0:02:02]} Ba6 {[%emt 0:03:17]} 19. Bxc6 {[%emt 0:09:20]} Rxc6 {[%emt 0:00:44]} 20. Rfc1 {[%emt 0:07:43]} Nd7 {[%emt 0:04:31]} 21. Rc2 {[%emt 0:02:09]} Rac8 {[%emt 0:02:24]} 22. Rac1 {[%emt 0:00:42]} Qd6 {[%emt 0:01:50]} 23. a4 {[%emt 0:02:34]} Qc7 {[%emt 0:03:07]} 24. Ne1 {[%emt 0:01:11]} Bc4 {[%emt 0:05:03]} 25. Nb5 {[%emt 0:02:18]} Qb7 $11 {[%emt 0:01:05]} 26. Na3 {[%emt 0:02:39]} Qa6 {[%emt 0:01:37]} 27. Nxc4 {[%emt 0:01:20]} Rxc4 {[%emt 0:00:10]} 28. Rxc4 {[%emt 0:00:26]} Rxc4 {[%emt 0:00:20]} 29. Rxc4 {[%emt 0:00:13]} Qxc4 {[%emt 0:00:26]} 30. Qb5 {[%emt 0:00:47]} Qxb5 {[%emt 0:02:55]} 31. axb5 {[%emt 0:00:13]} e5 {[%emt 0:00:53]} 32. Nd3 {[%emt 0:00:58]} exd4 {[%emt 0:01:20]} 33. exd4 {[%emt 0:00:16]} Kf8 {[%emt 0:01:59]} 34. Kf1 {[%emt 0:00:43]} Ke7 {[%emt 0:00:49]} 35. Ke2 {[%emt 0:00:21]} Kd6 {[%emt 0:01:46]} 36. f3 {[%emt 0:03:59]} Nf8 {[%emt 0:01:11]} 37. Nb4 {[%emt 0:01:22]} Ne6 {[%emt 0:00:44]} 38. Nc2 {[%emt 0:01:20]} Nc7 {[%emt 0:01:48]} 39. Na3 {[%emt 0:00:11]} g6 {[%emt 0:02:12]} 40. Ke3 {[%emt 0:00:50]} Ke6 {[%emt 0:01:15]} 41. Kf4 {[%emt 0:30:51]} f5 {[%emt 0:31:35]} 42. Kg3 {[%emt 0:00:31]} g5 {[%emt 0:01:26]} 43. f4 {[%emt 0:00:30]} gxf4+ {[%emt 0:00:36]} 44. Kxf4 {[%emt 0:00:26]} Kf6 {[%emt 0:00:26]} 45. Kg3 {[%emt 0:00:52]} Kg5 {[%emt 0:00:43]} 46. h4+ {[%emt 0:00:30]} Kh5 {[%emt 0:01:01]} 47. Kh3 {[%emt 0:01:00]} Ne6 {[%emt 0:01:07]} 48. Nc2 {[%emt 0:00:43]} Nf4+ {[%emt 0:00:42]} 49. Kg3 {[%emt 0:00:14]} Ng6 {[%emt 0:01:17]} 50. Ne3 {[%emt 0:01:27]} f4+ {[%emt 0:00:11]} 51. Kh3 {[%emt 0:00:08]} fxe3 {[%emt 0:00:05]} 52. g4# 1-0

[Event "Czech Youth U10 Boys 2024"]
[Site "Kouty nad Desnou"]
[Date "2024.03.16"]
[Round "9.4"]
[White "Vydra, David"]
[Black "Skoloud, Josef"]
[Result "1-0"]
[ECO "C48"]
[WhiteElo "1583"]
[BlackElo "1564"]
[Annotator "NA RC"]
[PlyCount "71"]
[EventDate "2024.03.10"]
[EventType "swiss"]
[EventCountry "CZE"]
[SourceTitle "playchess.com"]
[Source "ChessBase"]
[SourceQuality "1"]
[TimeControl "40/5400+30:1800+30"]

1. e4 {[%emt 0:00:02]} e5 {[%emt 0:00:04]} 2. Nf3 {[%emt 0:00:09]} Nc6 {[%emt 0:00:06]} 3. Nc3 {[%emt 0:00:06]} Nf6 {[%emt 0:00:20]} 4. Bb5 {[%emt 0:00:11]} Nd4 {[%emt 0:00:22]} 5. Bc4 {[%emt 0:01:03]} Bc5 {[%emt 0:02:21]} 6. d3 {[%emt 0:01:13]} d6 {[%emt 0:03:12]} 7. h3 {[%emt 0:01:53]} Qe7 {[%emt 0:06:27]} 8. Bg5 {[%emt 0:00:28]} h6 {[%emt 0:00:34]} 9. Bxf6 {[%emt 0:00:54]} Qxf6 {[%emt 0:00:59]} 10. Nd5 {[%emt 0:00:12]} Qd8 {[%emt 0:00:51]} 11. Nxd4 {[%emt 0:07:23]} Bxd4 {[%emt 0:01:11]} 12. c3 {[%emt 0:00:13]} Bb6 {[%emt 0:00:19]} 13. a4 {[%emt 0:00:16]} c6 {[%emt 0:00:48]} 14. Nb4 {[%emt 0:00:54]} Qf6 {[%emt 0:02:37]} 15. O-O {[%emt 0:00:59]} Be6 {[%emt 0:02:52]} 16. Bxe6 {[%emt 0:00:42]} Qxe6 {[%emt 0:00:24]} 17. a5 {[%emt 0:00:46]} Bc5 {[%emt 0:03:45]} 18. Nc2 {[%emt 0:00:10]} a6 {[%emt 0:00:19]} 19. b4 {[%emt 0:00:28]} Ba7 {[%emt 0:00:17]} 20. d4 {[%emt 0:00:07]} exd4 {[%emt 0:02:20]} 21. cxd4 {[%emt 0:03:54]} O-O {[%emt 0:00:18]} 22. Re1 {[%emt 0:00:24]} Qf6 {[%emt 0:04:11]} 23. Ra3 {[%emt 0:00:47]} c5 {[%emt 0:04:53]} 24. bxc5 {[%emt 0:01:03]} dxc5 {[%emt 0:00:52]} 25. Rf3 {[%emt 0:00:16]} Qd8 {[%emt 0:00:56]} 26. d5 {[%emt 0:00:18]} Qxa5 {[%emt 0:00:37]} 27. Rg3 {[%emt 0:00:20]} Bb8 {[%emt 0:00:57]} 28. e5 {[%emt 0:00:37]} b5 {[%emt 0:01:10]} 29. Qg4 {[%emt 0:00:30]} g6 {[%emt 0:00:45]} 30. Qf5 {[%emt 0:00:45]} Qd8 {[%emt 0:05:11]} 31. Rxg6+ {[%emt 0:02:49]} fxg6 {[%emt 0:00:27]} 32. Qxg6+ {[%emt 0:00:41]} Kh8 {[%emt 0:00:06]} 33. Qxh6+ {[%emt 0:00:07]} Kg8 {[%emt 0:00:05]} 34. Re4 {[%emt 0:01:13]} Bxe5 {[%emt 0:02:56]} 35. Rg4+ {[%emt 0:01:14]} Kf7 {[%emt 0:00:09]} 36. Qe6# {[%emt 0:00:04]} 1-0